bitfinex/quotes_ETHUSD_20250324
["timestamp","ask_amount","ask_price","bid_price","bid_amount"]
[1742835995081,9.59622,2084.2,2083.8,9.4559]
[1742835995282,4.79825,2084.1,2083.8,4.657]
[1742835996080,4.7981,2084.2,2083.8,9.45583]
[1742835996579,4.79831,2084.1,2083.8,4.657]
[1742835996979,4.79873,2083.9,2083.7,25.37]
[1742835997183,4.79802,2084.2,2083.8,4.651]
[1742835997384,4.79824,2084.1,2083.8,4.651]
[1742835998986,3.98178254,2084.4,2083.8,4.651]
[1742835999295,4.79835,2084.1,2083.8,4.651]
[1742836000285,4.79869,2083.9,2083.8,4.651]
[1742836000487,4.79869,2083.9,2083.7,25.37]
[1742836000703,6.38469756,2084.3,2083.7,25.37]
[1742836000704,4.79812,2084.2,2083.8,4.646]
[1742836000912,4.79777,2084.3,2083.9,4.79859]
[1742836001818,4.79777,2084.3,2083.9,9.59714]
[1742836002015,4.79777,2084.3,2084.0,4.79831]
[1742836002223,4.79777,2084.3,2083.9,4.79855]
[1742836002399,4.79777,2084.3,2083.9,9.59712]
[1742836002844,9.59573,2084.3,2083.9,4.79855]
[1742836003041,9.59571,2084.3,2083.9,4.79855]
[1742836003247,4.79777,2084.3,2083.9,9.59708]
[1742836003536,4.79777,2084.3,2083.9,9.59709]
[1742836003706,4.79777,2084.3,2083.9,9.6450704]
[1742836003916,4.79777,2084.3,2083.9,4.79853]
[1742836005146,11.93932254,2084.4,2084.0,4.79831]
[1742836005328,5.77932254,2084.4,2084.0,4.79831]
[1742836005625,5.77932254,2084.4,2084.1,0.04797745]
[1742836006022,0.98178254,2084.4,2084.1,4.84612745]
[1742836006216,0.98178254,2084.4,2084.2,4.79788]
[1742836006395,0.98178254,2084.4,2084.3,4.64]
[1742836007428,0.1236031,2084.5,2084.3,4.64]
[1742836008642,4.9209231,2084.5,2084.3,4.64]
[1742836008934,0.1236031,2084.5,2084.3,4.64]
[1742836010619,0.1236031,2084.5,2084.3,9.43776]
[1742836010837,0.1236031,2084.5,2084.3,9.48561151]
[1742836011019,0.1236031,2084.5,2084.3,9.43764]
[1742836011848,0.1236031,2084.5,2084.3,14.28325152]
[1742836012051,0.1236031,2084.5,2084.4,4.79754]
[1742836012429,0.1236031,2084.5,2084.4,13.82754]
[1742836014329,0.1236031,2084.5,2084.4,14.19649933]
[1742836020763,7.3e-06,2084.5,2084.4,14.74649933]
[1742836020940,7.3e-06,2084.5,2084.4,14.98991064]
[1742836021144,7.3e-06,2084.5,2084.4,14.74649933]
[1742836021473,7.3e-06,2084.5,2084.4,19.54749933]
[1742836023038,7.3e-06,2084.5,2084.4,19.78618655]
[1742836024470,0.01,2085.4,2085.3,4.79547]
[1742836024773,0.01,2085.4,2085.3,4.644]
[1742836026338,0.01,2085.4,2085.3,9.43947]
[1742836027555,0.01,2085.4,2085.3,4.644]
[1742836030481,0.01,2085.4,2085.3,9.43947]
[1742836032264,0.01,2085.4,2085.3,4.644]
[1742836035593,0.01,2085.4,2085.3,9.48742085]
[1742836037163,0.01,2085.4,2085.3,18.46947]
[1742836039594,0.00132922,2085.8,2085.7,4.79455]
[1742836041988,0.00132922,2085.8,2085.7,4.84248691]
[1742836042295,0.00132922,2085.8,2085.7,4.79455]
[1742836044806,0.00132922,2085.8,2085.7,5.14768174]
[1742836047101,0.00132922,2085.8,2085.7,9.77268174]
[1742836054830,0.00132922,2085.8,2085.7,4.97813174]
[1742836054982,4.79455,2085.7,2085.6,25.343]
[1742836055180,4.79455,2085.7,2085.6,29.968]
[1742836056612,6.56029192,2085.7,2085.6,29.968]
[1742836056813,6.56029192,2085.7,2085.6,25.343]
[1742836057019,6.56029192,2085.7,2085.6,29.968]
[1742836057217,6.56029192,2085.7,2085.6,4.625]
[1742836057518,4.79551,2085.3,2085.0,25.342]
[1742836057681,0.7963,2085.2,2085.1,4.625]
[1742836057887,5.59213,2085.2,2085.1,4.625]
[1742836058086,5.59213,2085.2,2085.0,25.342]
[1742836058302,5.59213,2085.2,2085.1,4.625]
[1742836058516,4.79593,2085.1,2085.0,25.342]
[1742836058703,4.79593,2085.1,2085.0,29.967]
[1742836058988,5.61903,2085.1,2085.0,29.967]
[1742836062626,6.71,2085.1,2084.0,25.347]
[1742836062787,0.7763,2084.5,2084.2,4.79787]
[1742836064397,5.57367,2084.5,2084.1,9.42418]
[1742836064598,5.57367,2084.5,2084.1,9.42404]
[1742836065007,0.7763,2084.5,2084.2,4.79796]
[1742836065210,5.57374,2084.5,2084.1,9.42404]
[1742836065533,4.7977,2084.4,2084.0,25.347]
[1742836065739,4.7977,2084.4,2084.2,4.626]
[1742836065905,5.57361,2084.5,2084.2,4.626]
[1742836066110,5.57361,2084.5,2084.2,9.42399]
[1742836066323,5.57361,2084.5,2084.2,4.626]
[1742836066847,6.9348761,2085.0,2084.2,4.626]
[1742836066848,0.7895,2085.0,2084.3,6.03]
[1742836067000,0.7895,2085.0,2084.8,4.79653]
[1742836067331,5.58566,2085.0,2084.9,4.63]
[1742836067528,4.7968,2084.8,2084.4,4.79751]
[1742836067834,0.7723,2084.7,2084.5,4.631]
[1742836068820,0.7723,2084.7,2084.5,9.42827]
[1742836069219,4.79645,2084.9,2084.5,9.42827]
[1742836069520,0.8247,2084.9,2084.7,4.79674]
[1742836069719,0.8247,2084.9,2084.6,4.79708]
[1742836070829,6.16,2085.2,2084.8,4.79648]
[1742836071032,0.7955,2085.1,2084.8,4.79648]
[1742836071721,5.59143,2085.1,2084.7,9.59352]
[1742836071930,5.59143,2085.1,2084.8,4.79659]
[1742836071931,0.7955,2085.1,2084.8,4.79659]
[1742836072127,0.7955,2085.1,2084.7,4.79679]
[1742836072447,0.7955,2085.1,2084.8,4.7966]
[1742836072611,0.7955,2085.1,2084.9,4.79638]
[1742836072801,0.7955,2085.1,2085.0,4.627]
[1742836073428,7.246108,2085.1,2085.0,4.627]
[1742836079851,2.450178,2085.1,2085.0,4.627]
[1742836080020,0.7955,2085.1,2085.0,4.627]
[1742836080429,10.9559,2085.2,2085.0,4.627]
[1742836080430,6.16,2085.2,2085.0,4.627]
[1742836082539,4.79572,2085.2,2085.0,4.627]
[1742836084052,0.8326,2084.8,2084.5,9.5944]
[1742836084272,0.8326,2085.0,2084.6,9.42395]
[1742836084473,0.8326,2085.0,2084.7,4.79685]
[1742836084626,0.8326,2085.0,2084.6,14.22088]
[1742836084824,0.8326,2085.0,2084.7,4.79681]
[1742836085049,0.8326,2085.0,2084.8,4.627]
[1742836086463,5.62878,2085.0,2084.8,4.627]
[1742836086761,6.671252,2085.0,2084.8,4.627]
[1742836087061,10.4251,2085.0,2084.8,4.627]
[1742836087366,10.42513,2085.0,2084.8,4.627]
[1742836087662,10.4251,2085.0,2084.8,4.627]
[1742836088163,5.62878,2085.0,2084.8,4.627]
[1742836088657,10.42513,2085.0,2084.9,4.627]
[1742836088830,5.62878,2085.0,2084.9,4.627]
[1742836089428,7.287253,2085.0,2084.9,4.627]
[1742836092358,2.491073,2085.0,2084.9,4.627]
[1742836092739,7.287233,2085.0,2084.9,4.627]
[1742836093569,6.97,2085.2,2084.9,4.627]
[1742836093738,6.97,2085.2,2084.9,9.42329]
[1742836093939,11.76577,2085.2,2084.9,4.627]
[1742836094139,5.60577,2085.2,2084.9,4.627]
[1742836094545,4.79605,2085.1,2084.9,4.627]
[1742836095439,0.81,2085.2,2084.9,4.627]
[1742836095640,4.79606,2085.1,2084.9,4.627]
[1742836095884,4.79616,2085.0,2084.9,4.627]
[1742836096084,4.79606,2085.1,2084.9,4.627]
[1742836096640,4.79616,2085.0,2084.9,4.627]
[1742836098373,4.79606,2085.1,2084.9,4.627]
[1742836098374,9.59216,2085.1,2084.9,4.627]
[1742836098671,4.79616,2085.0,2084.9,4.627]
[1742836099173,4.79606,2085.1,2084.9,4.627]
[1742836099369,4.79616,2085.0,2084.9,4.627]
[1742836099565,4.79606,2085.1,2084.9,4.627]
[1742836099953,4.79616,2085.0,2084.9,4.627]
[1742836100471,6.9880055,2085.0,2084.9,4.627]
[1742836100675,7.7548055,2085.0,2084.9,4.627]
[1742836101573,4.7964,2084.9,2084.5,9.59449]
[1742836101743,4.7964,2084.9,2084.6,4.627]
[1742836102484,7.7548055,2085.0,2084.6,4.627]
[1742836102847,5.56296,2085.0,2084.5,4.7971]
[1742836103051,5.56296,2085.0,2084.7,4.627]
[1742836104077,4.79647,2084.9,2084.8,4.627]
[1742836104278,0.7668,2085.0,2084.3,30.15174]
[1742836104488,4.797,2084.7,2084.4,4.627]
[1742836104782,4.79716,2084.6,2084.4,4.627]
[1742836104996,4.79716,2084.6,2084.3,25.354]
[1742836105156,5.62081,2084.5,2084.4,4.627]
[1742836105353,4.79716,2084.6,2084.4,4.627]
[1742836105557,5.34646,2084.9,2084.5,4.79723]
[1742836105749,5.34646,2084.9,2084.6,4.627]
[1742836105750,4.79707,2084.7,2084.6,4.627]
[1742836106477,4.79677,2084.8,2084.6,4.627]
[1742836106676,4.79685,2084.7,2084.6,4.627]
[1742836108186,4.79677,2084.8,2084.6,4.627]
[1742836109268,4.79677,2084.8,2084.7,4.627]
[1742836111413,6.1698,2084.9,2084.7,4.627]
[1742836111414,0.8234,2084.9,2084.7,4.627]
[1742836111611,8.61986,2084.9,2084.7,4.627]
[1742836111989,5.61986,2084.9,2084.7,4.627]
[1742836112394,4.79646,2084.9,2084.7,4.627]
[1742836113783,10.95622,2085.0,2084.7,4.627]
[1742836113978,9.59255,2085.0,2084.7,4.627]
[1742836114480,4.79622,2085.0,2084.7,4.627]
[1742836114818,9.59254,2085.0,2084.7,4.627]
[1742836115518,4.79642,2084.9,2084.7,4.627]
[1742836115885,4.79687,2084.7,2084.3,30.15174]
[1742836116086,4.79718,2084.6,2084.4,4.627]
[1742836116921,9.59443,2084.6,2084.4,4.627]
[1742836117422,4.79731,2084.5,2084.4,4.627]
[1742836118208,4.79754,2084.4,2084.3,25.354]
[1742836118422,4.79754,2084.4,2084.3,29.981]
[1742836119205,4.79711,2084.6,2084.3,29.981]
[1742836120119,9.59439,2084.6,2084.3,29.981]
[1742836120324,4.79711,2084.6,2084.3,29.981]
[1742836120830,15.75387,2084.7,2084.3,34.77864]
[1742836120990,10.95686,2084.7,2084.3,34.77864]
[1742836121192,4.79708,2084.6,2084.3,34.77864]
[1742836121397,6.16,2084.7,2084.4,4.79737]
[1742836121690,6.16,2084.7,2084.5,4.79717]
[1742836122535,6.16,2084.7,2084.5,9.59437]
[1742836122732,6.16,2084.7,2084.5,9.59434]
[1742836122893,6.16,2084.7,2084.6,4.79708]
[1742836124327,6.16,2084.7,2084.5,4.79723]
[1742836124498,6.16,2084.7,2084.5,4.79714]
[1742836125010,6.16,2084.7,2084.5,4.79723]
[1742836125209,6.16,2085.1,2084.4,3.0]
[1742836125410,6.16,2085.3,2084.8,4.79646]
[1742836125733,6.16,2085.3,2085.0,4.7961]
[1742836125903,4.79494,2085.6,2084.9,4.627]
[1742836126096,4.79494,2085.6,2085.1,4.79572]
[1742836126301,4.79494,2085.6,2085.2,4.79562]
[1742836126924,9.58992,2085.6,2085.1,4.79572]
[1742836127224,9.58992,2085.6,2085.1,9.59151]
[1742836127732,4.79506,2085.5,2085.1,4.79572]
[1742836128229,9.59028,2085.5,2085.1,4.79572]
[1742836128544,4.79531,2085.4,2085.0,4.79603]
[1742836128733,4.79586,2085.2,2085.1,4.627]
[1742836133647,5.61926,2085.2,2085.1,4.627]
[1742836134419,5.61926,2085.2,2084.8,4.79661]
[1742836134625,5.61926,2085.2,2085.1,4.626]
[1742836137127,10.41515,2085.2,2085.1,4.626]
[1742836137330,12.072665,2085.2,2085.1,4.626]
[1742836137522,7.276775,2085.2,2085.1,4.626]
[1742836140043,1.657515,2085.2,2085.1,4.626]
[1742836140346,10.95548,2085.3,2085.1,4.626]
[1742836140730,4.7957,2085.2,2085.1,4.626]
[1742836142351,6.16,2085.3,2085.1,4.626]
[1742836142522,6.16,2085.3,2085.1,9.42182]
[1742836142723,6.16,2085.3,2085.1,4.626]
[1742836142951,10.95561,2085.3,2085.1,4.626]
[1742836143856,6.16,2085.3,2085.1,4.626]
[1742836145653,4.79527,2085.4,2085.1,4.626]
[1742836146353,5.58567,2085.5,2085.1,4.626]
[1742836146563,4.79479,2085.6,2085.1,9.4218]
[1742836146755,10.60379992,2085.6,2085.2,4.79568]
[1742836147157,4.79503,2085.5,2085.1,9.4218]
[1742836147661,1.3526,2085.7,2085.1,9.4218]
[1742836147662,5.59722,2085.7,2085.1,4.626]
[1742836147848,0.00132922,2085.8,2085.5,4.79492]
[1742836148162,0.00132922,2085.8,2085.6,4.626]
[1742836148740,4.79573922,2085.8,2085.6,4.626]
[1742836149664,0.00132922,2085.8,2085.6,4.626]
[1742836150183,0.00132922,2085.8,2085.6,9.42072]
[1742836150630,0.00132922,2085.8,2085.6,4.626]
[1742836151075,4.79573922,2085.8,2085.6,4.626]
[1742836151279,0.00132922,2085.8,2085.6,4.626]
[1742836152478,4.79573922,2085.8,2085.6,4.626]
[1742836152667,4.79455,2085.7,2085.2,4.79562]
[1742836152842,4.79486,2085.6,2085.3,4.625]
[1742836153047,4.79455,2085.7,2085.3,4.625]
[1742836153476,4.79455,2085.7,2085.3,9.42043]
[1742836153848,4.79455,2085.7,2085.3,14.21575]
[1742836154173,4.79571922,2085.8,2085.4,4.79517]
[1742836154547,0.00132922,2085.8,2085.4,4.79524]
[1742836154747,0.00132922,2085.8,2085.5,4.79492]
[1742836155447,0.00132922,2085.8,2085.5,4.79493]
[1742836155673,0.00132922,2085.8,2085.6,4.79469]
[1742836155850,0.00132922,2085.8,2085.6,9.5893]
[1742836156049,0.00132922,2085.8,2085.7,4.79455]
[1742836157180,0.00132922,2085.8,2085.7,4.84248999]
[1742836158983,0.00132922,2085.8,2085.7,4.79455]
[1742836162179,0.00132922,2085.8,2085.7,7.79455]
[1742836162981,0.00132922,2085.8,2085.7,12.41855]
[1742836164087,0.00132922,2085.8,2085.7,9.41855]
[1742836165017,0.00132922,2085.8,2085.7,9.46648778]
[1742836165294,0.00132922,2085.8,2085.7,9.41855]
[1742836167289,0.00132922,2085.8,2085.7,4.79455]
[1742836167497,0.00132922,2085.8,2085.7,9.41755]
[1742836168198,0.00132922,2085.8,2085.7,9.46549012]
[1742836170585,0.00132922,2085.8,2085.7,9.41755]
[1742836171910,0.00132922,2085.8,2085.7,12.41755]
[1742836183230,9.22e-06,2085.8,2085.7,12.41755]
[1742836188022,9.22e-06,2085.8,2085.7,12.41555]
[1742836193331,9.22e-06,2085.8,2085.7,37.75355]
[1742836201219,9.22e-06,2085.8,2085.7,33.13255]
[1742836201418,9.22e-06,2085.8,2085.7,37.75355]
[1742836202318,9.22e-06,2085.8,2085.7,29.959]
[1742836202548,9.22e-06,2085.8,2085.7,34.75355]
[1742836202749,0.75170922,2085.8,2085.7,34.75355]
[1742836205264,9.22e-06,2085.8,2085.7,34.75355]
[1742836209526,9.22e-06,2085.8,2085.7,37.75355]
[1742836211551,9.22e-06,2085.8,2085.7,43.78355]
[1742836214567,9.22e-06,2085.8,2085.7,39.16255]
[1742836214771,0.79810922,2085.8,2085.7,25.338]
[1742836214985,0.79810922,2085.8,2085.7,29.958]
[1742836215167,1.35730814,2085.8,2085.7,29.958]
[1742836215346,6.15162814,2085.8,2085.7,29.958]
[1742836218847,1.35730814,2085.8,2085.7,29.958]
[1742836219047,0.79810922,2085.8,2085.7,29.958]
[1742836220547,5.59242922,2085.8,2085.7,25.338]
[1742836220869,5.59242922,2085.8,2085.7,29.959]
[1742836220870,0.79810922,2085.8,2085.7,29.959]
[1742836222353,5.59242922,2085.8,2085.7,29.959]
[1742836223081,0.79810922,2085.8,2085.7,29.959]
[1742836223953,5.59242922,2085.8,2085.7,29.959]
[1742836225189,0.79810922,2085.8,2085.7,29.959]
[1742836226864,0.79810922,2085.8,2085.7,4.621]
[1742836228491,9.22e-06,2085.8,2085.7,9.41555]
[1742836229712,9.22e-06,2085.8,2085.7,4.621]
[1742836233666,9.22e-06,2085.8,2085.7,9.41555]
[1742836235318,9.22e-06,2085.8,2085.7,4.621]
[1742836237102,9.22e-06,2085.8,2085.7,9.41555]
[1742836237268,9.22e-06,2085.8,2085.7,4.621]
[1742836237579,9.22e-06,2085.8,2085.7,9.41555]
[1742836238598,9.22e-06,2085.8,2085.7,4.621]
[1742836247014,4.79432922,2085.8,2085.7,4.621]
[1742836247389,9.22e-06,2085.8,2085.7,4.621]
[1742836256828,9.22e-06,2085.8,2085.6,4.79476]
[1742836257034,9.22e-06,2085.8,2085.7,4.619]
[1742836258258,9.22e-06,2085.8,2085.7,9.41355]
[1742836258753,9.22e-06,2085.8,2085.7,4.78056594]
[1742836259526,9.22e-06,2085.8,2085.7,5.22845605]
[1742836259914,9.22e-06,2085.8,2085.7,9.84745605]
[1742836260544,9.22e-06,2085.8,2085.7,12.84745605]
[1742836260746,9.22e-06,2085.8,2085.7,22.42745605]
[1742836260925,0.1236031,2086.6,2086.5,4.79271]
[1742836261120,0.1236031,2086.6,2086.5,9.41071]
[1742836261944,0.1236031,2086.6,2086.5,9.85860011]
[1742836263329,0.1236031,2086.6,2086.5,10.22157357]
[1742836264635,0.1236031,2086.6,2086.5,0.81086357]
[1742836264823,0.1236031,2086.6,2086.5,5.42886357]
[1742836265240,0.1236031,2086.6,2086.5,10.22157357]
[1742836268646,0.1236031,2086.6,2086.5,5.06489011]
[1742836268823,4.9160831,2086.6,2086.5,5.06489011]
[1742836269779,0.1236031,2086.6,2086.5,9.85760011]
[1742836270231,0.1236031,2086.6,2086.5,4.617]
[1742836270634,5.6816831,2086.6,2086.2,0.36089657]
[1742836270848,4.7928,2086.5,2086.3,4.617]
[1742836271143,0.8892031,2086.6,2086.3,9.41]
[1742836271662,0.1236031,2086.6,2086.4,4.79285]
[1742836271851,0.1236031,2086.6,2086.5,4.79271]
[1742836272053,0.1236031,2086.6,2086.4,4.7928]
[1742836272765,0.1236031,2086.6,2086.5,4.79271]
[1742836274376,0.1236031,2086.6,2086.5,4.84062797]
[1742836275141,0.1236031,2086.6,2086.5,4.79271]
[1742836275537,0.1236031,2086.6,2086.4,5.23697973]
[1742836275764,0.1236031,2086.6,2086.5,4.79271]
[1742836278170,0.1236031,2086.6,2086.4,9.58563]
[1742836278974,0.1236031,2086.6,2086.5,4.616]
[1742836279157,0.1236031,2086.6,2086.5,9.40871]
[1742836281078,0.9086031,2086.6,2086.5,4.616]
[1742836281284,0.1236031,2086.6,2086.5,9.40871]
[1742836288063,0.1236031,2086.6,2086.5,9.45663219]
[1742836288766,0.1236031,2086.6,2086.5,9.40871]
[1742836291199,0.7593,2086.5,2086.3,25.334]
[1742836291367,0.7593,2086.5,2086.4,4.615]
[1742836292276,1.80607131,2086.5,2086.4,4.615]
[1742836293066,6.59878131,2086.5,2086.4,4.615]
[1742836293270,1.80607131,2086.5,2086.4,4.615]
[1742836294603,0.7593,2086.5,2086.4,4.615]
[1742836295704,5.55201,2086.5,2086.4,4.615]
[1742836298998,5.55201,2086.5,2086.4,4.614]
[1742836299699,5.60004,2086.4,2086.3,25.334]
[1742836299917,5.60004,2086.4,2086.3,29.948]
[1742836300196,7.13093131,2086.4,2086.3,29.948]
[1742836302713,7.13093131,2086.4,2086.3,4.614]
[1742836303809,4.79398,2086.0,2085.7,30.12952]
[1742836304008,4.79393,2086.0,2085.8,4.614]
[1742836304376,9.58797,2086.0,2085.8,4.614]
[1742836304762,0.7905,2085.9,2085.8,4.614]
[1742836305248,4.79393,2086.0,2085.8,4.614]
[1742836307107,4.79409,2085.9,2085.8,4.614]
[1742836307312,4.79409,2085.9,2085.8,4.615]
[1742836307509,4.79409,2085.9,2085.7,25.335]
[1742836307710,4.79409,2085.9,2085.8,4.615]
[1742836308515,1.038232,2085.9,2085.8,4.615]
[1742836308713,4.79393,2086.0,2085.8,4.615]
[1742836310113,9.58796,2086.0,2085.8,4.615]
[1742836310309,4.79409,2085.9,2085.8,4.615]
[1742836311620,5.56239,2085.9,2085.8,4.615]
[1742836312816,5.56062,2085.8,2085.7,25.335]
[1742836312985,7.691481,2085.8,2085.7,29.95]
[1742836313714,2.897161,2085.8,2085.7,29.95]
[1742836313897,4.79409,2085.9,2085.7,29.95]
[1742836314697,4.79432,2085.8,2085.7,29.95]
[1742836317233,5.59442,2085.7,2085.2,4.7955]
[1742836317431,5.59473,2085.6,2085.3,4.615]
[1742836318136,5.59461,2085.6,2085.3,4.615]
[1742836318642,10.38957,2085.6,2085.3,4.615]
[1742836319635,5.60565,2085.8,2085.3,4.615]
[1742836319806,4.79463,2085.7,2085.3,4.615]
[1742836320007,4.79463,2085.7,2085.3,9.4104]
[1742836320202,4.79463,2085.7,2085.3,14.20574]
[1742836320403,4.79463,2085.7,2085.4,4.79523]
[1742836320617,5.60554,2085.8,2085.4,4.79523]
[1742836320935,4.795,2085.6,2085.5,4.615]
[1742836321332,5.5934,2085.6,2085.5,4.615]
[1742836322224,4.79553,2085.3,2085.0,4.796]
[1742836322402,4.79522,2085.5,2085.1,4.615]
[1742836322600,4.79534,2085.4,2085.1,4.615]
[1742836322804,9.5908,2085.4,2085.1,4.615]
[1742836323007,4.79503,2085.5,2085.1,4.615]
[1742836323292,0.7984,2085.6,2085.1,4.615]
[1742836323521,6.16,2085.7,2085.4,4.79511]
[1742836323730,0.756,2086.1,2085.2,7.7957]
[1742836323892,4.79357,2086.2,2085.8,4.79413]
[1742836324098,10.34257,2086.3,2085.9,4.615]
[1742836324346,7.35252613,2086.3,2085.9,9.40909]
[1742836324552,3.0,2086.5,2085.9,9.40909]
[1742836324553,5.54888,2086.5,2086.1,4.79355]
[1742836324707,4.9161031,2086.6,2086.2,4.79324]
[1742836324910,4.9162131,2086.6,2086.1,4.79344]
[1742836325097,0.1236031,2086.6,2086.3,9.58617]
[1742836325333,0.1236031,2086.6,2086.4,4.615]
[1742836325565,0.1236031,2086.6,2086.4,9.40786]
[1742836325722,0.1236031,2086.6,2086.5,4.79271]
[1742836326199,0.1236031,2086.6,2086.5,10.82271]
[1742836326414,0.1236031,2086.6,2086.5,4.79271]
[1742836326624,0.1236031,2086.6,2086.5,10.82271]
[1742836327408,0.1236031,2086.6,2086.5,13.82271]
[1742836327621,3.1e-06,2086.6,2086.5,16.82271]
[1742836327821,3.1e-06,2086.6,2086.5,22.16871]
[1742836328922,3.1e-06,2086.6,2086.5,22.06871]
[1742836329238,0.01,2087.4,2087.2,4.7911]
[1742836329443,0.01,2087.4,2087.3,34.74587]
[1742836329644,0.01,2087.4,2087.3,37.74587]
[1742836329958,0.01,2087.4,2087.3,46.7758669]
[1742836330555,0.01,2087.4,2087.3,47.3258669]
[1742836330840,0.3458,2088.0,2087.6,4.79005]
[1742836331046,0.3458,2088.0,2087.7,4.78986]
[1742836331213,0.3458,2088.0,2087.8,4.613]
[1742836331543,0.09351288,2087.9,2087.8,9.4025]
[1742836331840,0.09351288,2087.9,2087.8,12.4025]
[1742836332006,0.3458,2088.0,2087.9,4.7895]
[1742836332544,0.3458,2088.0,2087.9,5.14482543]
[1742836332743,0.3458,2088.0,2087.9,11.14482543]
[1742836333045,0.3458,2088.0,2087.9,22.51782233]
[1742836333247,1e-05,2088.0,2087.9,17.17482233]
[1742836333450,0.1236031,2088.7,2088.6,4.78789]
[1742836333750,0.1236031,2088.7,2088.6,37.76389]
[1742836333935,0.1236031,2088.7,2088.6,43.7938869]
[1742836334136,0.1236031,2088.7,2088.6,46.7938869]
[1742836334333,0.1236031,2088.7,2088.6,41.31389]
[1742836334643,3.1e-06,2088.7,2088.6,52.50198218]
[1742836335143,3.1e-06,2088.7,2088.6,39.52098218]
[1742836335344,3.1e-06,2088.7,2088.6,33.36109528]
[1742836335545,3.1e-06,2088.7,2088.6,38.15298528]
[1742836335913,3.1e-06,2088.7,2088.6,41.15298528]
[1742836336539,3.1e-06,2088.7,2088.6,41.70298528]
[1742836337122,1e-07,2088.9,2088.6,41.70298528]
[1742836337322,1e-07,2088.9,2088.8,7.78743]
[1742836337527,1e-07,2088.9,2088.8,14.3674269]
[1742836337729,4.78377,2090.4,2089.9,4.78469]
[1742836337925,0.09693242,2090.3,2090.2,4.78423]
[1742836338126,4.9065731,2090.8,2090.1,3.0]
[1742836338127,4.9064731,2090.8,2090.1,3.0]
[1742836338318,4.7841,2090.3,2089.9,6.0299969]
[1742836338531,0.09645626,2090.2,2090.0,4.732]
[1742836338722,0.7956,2090.1,2089.7,25.321]
[1742836338949,4.78514,2089.8,2089.7,25.321]
[1742836339118,4.88025382,2090.0,2089.7,30.059]
[1742836339326,4.88025382,2090.0,2089.9,4.78491]
[1742836339327,0.09550382,2090.0,2089.9,4.78491]
[1742836339638,4.78254,2091.0,2090.6,4.78315]
[1742836339839,0.7956,2091.1,2090.7,9.54108]
[1742836340031,5.57785,2091.1,2090.7,9.54108]
[1742836340231,0.7956,2091.1,2090.7,9.54108]
[1742836340445,4.7827,2090.9,2090.7,4.758]
[1742836340651,4.78385,2090.4,2090.2,6.0299969]
[1742836340869,4.78354,2090.5,2089.7,36.1363469]
[1742836341178,4.78514,2089.8,2089.7,25.321]
[1742836341359,5.56292,2089.9,2089.4,4.78589]
[1742836341671,4.78493,2089.9,2089.5,4.78566]
[1742836341878,9.56956,2090.0,2089.6,9.54549]
[1742836342037,0.7779,2090.2,2089.6,5.69371741]
[1742836342241,3.7779,2090.5,2089.9,4.78481]
[1742836342426,5.5616,2090.5,2089.8,7.78509]
[1742836342664,5.5616,2090.5,2090.1,4.78436]
[1742836342840,4.78391,2090.4,2090.2,4.765]
[1742836343040,4.784,2090.3,2090.2,4.765]
[1742836343240,4.78449,2090.1,2089.7,18.6006069]
[1742836343445,4.78491,2089.9,2089.8,4.766]
[1742836343854,5.56261,2089.9,2089.8,4.766]
[1742836345066,4.78551,2089.7,2089.4,30.09802]
[1742836345374,4.7856,2089.6,2089.5,4.763]
[1742836345881,4.78583,2089.5,2089.4,25.312]
[1742836346041,4.78583,2089.5,2089.4,30.074]
[1742836347273,5.56723,2089.5,2089.4,25.312]
[1742836347446,5.56723,2089.5,2089.4,30.071]
[1742836348545,8.56723,2089.5,2089.4,30.071]
[1742836348773,10.4767641,2089.5,2089.4,30.071]
[1742836349282,0.09385822,2089.5,2089.4,34.85706]
[1742836349647,0.7597,2089.9,2089.4,34.85685]
[1742836350065,0.09467238,2089.8,2089.4,34.85698]
[1742836350283,4.87995238,2089.8,2089.4,34.85698]
[1742836350450,0.09467238,2089.8,2089.4,30.071]
[1742836350783,4.78549,2089.7,2089.4,30.071]
[1742836351079,4.8793475,2089.7,2089.4,30.071]
[1742836351472,0.0938575,2089.7,2089.6,4.7856]
[1742836351859,4.78522,2089.8,2089.4,34.85696]
[1742836352054,4.78563,2089.6,2089.4,25.312]
[1742836352247,5.825331,2089.6,2089.5,4.787]
[1742836352449,8.825331,2089.6,2089.5,4.787]
[1742836353396,4.78671,2089.2,2088.7,4.7876]
[1742836353675,4.78699,2089.0,2088.8,4.786]
[1742836353848,4.7872,2088.9,2088.6,25.301]
[1742836354043,4.7872,2088.9,2088.7,4.786]
[1742836354273,5.61829,2089.0,2088.7,4.786]
[1742836355060,0.8313,2089.0,2088.7,4.786]
[1742836355458,0.8313,2089.0,2088.7,9.57358]
[1742836355783,5.6183,2089.0,2088.7,4.786]
[1742836355984,4.78722,2088.9,2088.7,4.786]
[1742836356358,6.658786,2089.0,2088.7,4.786]
[1742836356547,1.871806,2089.0,2088.7,4.786]
[1742836356951,4.78654,2089.2,2088.7,4.786]
[1742836356952,4.78632,2089.3,2088.9,4.78712]
[1742836357394,4.78632,2089.3,2088.9,4.7872]
[1742836357880,5.55311,2089.4,2088.9,4.7872]
[1742836358088,10.33936,2089.4,2088.9,9.5742]
[1742836358288,4.78715,2089.0,2088.5,9.56904]
[1742836358472,0.478715,2088.9,2088.5,14.35703]